bitfinex-derivatives/quotes_ETHF0:USTF0_20250627
["timestamp","ask_amount","ask_price","bid_price","bid_amount"]
[1751006668034,0.40844,2447.3,2447.1,34.68168644]
[1751006668832,0.40844,2447.3,2447.1,36.09998644]
[1751006669034,0.40845,2447.2,2447.1,35.69151644]
[1751006669234,0.40845,2447.2,2447.1,34.27321644]
[1751006669836,0.40845,2447.2,2447.1,31.73547]
[1751006670236,0.40845,2447.2,2447.1,31.327]
[1751006670728,4.33661644,2447.4,2447.1,31.323]
[1751006670928,0.40845,2447.2,2447.1,31.323]
[1751006671328,0.40848,2447.0,2446.9,5.65089628]
[1751006671531,0.40848,2447.0,2446.9,37.38239628]
[1751006671726,1.07548,2447.1,2446.9,37.38139628]
[1751006672024,0.40848,2447.0,2446.9,12.07489628]
[1751006672229,0.40848,2447.0,2446.9,34.5298]
[1751006673130,0.40848,2447.0,2446.9,9.6318]
[1751006673327,0.40848,2447.0,2446.9,3.2078]
[1751006673531,0.4085,2446.9,2446.8,27.34009628]
[1751006673832,2.5241,2446.9,2446.8,24.897]
[1751006676642,1.073,2446.9,2446.8,24.897]
[1751006678043,0.40852,2446.8,2446.7,2.44309628]
[1751006678234,1.09732,2446.8,2446.7,33.76309628]
[1751006678635,2.48032,2446.8,2446.7,33.76309628]
[1751006678842,2.48032,2446.8,2446.7,31.32]
[1751006681145,0.40853,2446.7,2446.6,9.6318]
[1751006681344,0.40853,2446.7,2446.6,28.1028]
[1751006681639,1.85233,2446.7,2446.6,28.1028]
[1751006682339,0.40853,2446.7,2446.6,28.1028]
[1751006690750,0.40858,2446.4,2446.3,12.06689628]
[1751006690956,0.40858,2446.4,2446.3,36.95889628]
[1751006692351,0.40858,2446.4,2446.3,12.06689628]
[1751006692552,0.40858,2446.4,2446.3,36.95889628]
[1751006693251,0.40858,2446.4,2446.3,5.65089628]
[1751006693655,0.40858,2446.4,2446.3,36.95789628]
[1751006693955,0.40863,2446.1,2446.0,12.8570005]
[1751006694154,0.40863,2446.1,2446.0,34.5148]
[1751006694651,0.40863,2446.2,2446.0,34.92345]
[1751006694851,0.40859,2446.4,2446.2,0.40862]
[1751006695051,0.40859,2446.4,2446.3,2.94621644]
[1751006695451,0.4086,2446.3,2446.2,25.581]
[1751006696257,0.40859,2446.4,2446.2,27.40872]
[1751006697158,0.40859,2446.4,2446.2,27.0001]
[1751006697456,0.40859,2446.4,2446.2,27.40871]
[1751006697847,0.4086,2446.3,2446.2,27.0001]
[1751006698659,0.40859,2446.4,2446.2,27.40872]
[1751006699461,0.4086,2446.3,2446.2,27.0001]
[1751006699659,0.6689,2446.5,2446.4,0.40858]
[1751006699961,0.40854,2446.7,2446.5,0.40856]
[1751006700167,0.40854,2446.7,2446.6,29.25071644]
[1751006700356,0.9529389,2446.7,2446.6,36.07526644]
[1751006701159,0.40848,2447.0,2446.8,0.4085]
[1751006701355,0.40848,2447.0,2446.9,26.3357]
[1751006701554,1.36158666,2447.0,2446.9,26.3357]
[1751006701961,1.36158666,2447.0,2446.9,24.89]
[1751006705067,2.03568666,2447.0,2446.9,24.89]
[1751006706667,0.40851,2446.9,2446.7,3.2078]
[1751006706869,0.40851,2446.9,2446.7,9.6238]
[1751006706870,0.95310666,2446.8,2446.7,9.6238]
[1751006707165,0.95310666,2446.8,2446.4,3.2078]
[1751006707361,0.40859,2446.4,2446.3,24.886]
[1751006707668,0.40859,2446.4,2446.3,31.302]
[1751006707862,0.40859,2446.4,2446.3,6.416]
[1751006708062,0.40859,2446.4,2446.3,31.301]
[1751006708771,0.4086,2446.3,2446.1,5.67073]
[1751006708971,1.1012,2446.3,2446.2,6.416]
[1751006710066,1.1012,2446.3,2446.2,3.2332005]
[1751006711074,0.6926,2446.3,2446.1,15.80321694]
[1751006711373,0.40858,2446.4,2446.2,1.81221]
[1751006711569,0.40858,2446.4,2446.2,2.48481]
[1751006711972,0.40858,2446.4,2446.2,2.0762]
[1751006712673,0.4086,2446.3,2446.2,2.0762]
[1751006712874,0.40859,2446.4,2446.2,2.0762]
[1751006713979,0.40859,2446.4,2446.3,2.43796013]
[1751006716680,0.40859,2446.4,2446.2,2.48482]
[1751006716875,0.4086,2446.3,2446.1,37.7430005]
[1751006717178,0.40862,2446.2,2446.1,34.5098]
[1751006717376,0.40862,2446.2,2446.1,3.2078]
[1751006719173,0.40862,2446.2,2446.1,5.64671474]
[1751006719370,0.40862,2446.2,2446.1,3.2078]
[1751006721884,0.40862,2446.2,2446.1,5.64671474]
[1751006722481,0.6926,2446.5,2446.1,8.59293118]
[1751006722781,0.40861,2446.3,2446.2,0.7167]
[1751006723280,0.40859,2446.4,2446.2,1.12532]
[1751006723581,0.40859,2446.4,2446.2,2.47532]
[1751006723781,0.4086,2446.3,2446.2,2.0667]
[1751006724683,0.40859,2446.4,2446.2,2.47531]
[1751006724978,0.4086,2446.3,2446.2,2.47531]
[1751006725179,0.4086,2446.3,2446.2,2.0667]
[1751006725486,0.4086,2446.3,2446.2,1.35]
[1751006725781,0.40861,2446.2,2446.1,3.61643]
[1751006725972,0.40861,2446.3,2446.1,3.61643]
[1751006726282,0.40861,2446.2,2446.1,3.61643]
[1751006727082,0.40861,2446.3,2446.1,3.61643]
[1751006727286,0.40862,2446.2,2446.1,3.61643]
[1751006727487,0.40861,2446.3,2446.1,3.61643]
[1751006728792,0.40861,2446.3,2446.2,0.40862]
[1751006729091,0.40859,2446.4,2446.2,0.40862]
[1751006729293,0.6926,2446.5,2446.3,3.35481644]
[1751006729490,1.10118,2446.5,2446.4,1.3236]
[1751006729692,2.05542016,2446.5,2446.4,1.3236]
[1751006731288,2.05542016,2446.5,2446.2,0.4086]
[1751006731289,1.64684016,2446.5,2446.2,0.4086]
[1751006731490,0.40858,2446.4,2446.2,0.4086]
[1751006733799,0.40861,2446.3,2446.1,6.05534474]
[1751006735198,0.4086,2446.4,2446.2,0.40861]
[1751006735497,0.4086,2446.4,2446.2,1.8415]
[1751006737698,0.4086,2446.3,2446.1,6.05533474]
[1751006737902,2.0713,2446.5,2446.1,6.05533474]
[1751006738102,0.7218,2446.2,2446.1,6.05533474]
[1751006739604,1.13042,2446.2,2446.1,6.05533474]
[1751006740006,0.7218,2446.2,2446.1,6.05533474]
[1751006740301,0.7218,2446.2,2446.1,3.61642]
[1751006740502,0.7218,2446.2,2446.1,6.05533474]
[1751006741005,0.40863,2446.1,2446.0,33.73191474]
[1751006742100,0.40863,2446.1,2446.0,9.26456474]
[1751006742602,0.7218,2446.2,2446.0,8.85591474]
[1751006742807,1.13043,2446.2,2446.0,12.21077118]
[1751006743000,0.40863,2446.1,2446.0,11.80213118]
[1751006744207,0.40863,2446.1,2446.0,12.21078118]
[1751006744905,1.13043,2446.2,2446.0,12.21078118]
[1751006745098,0.40863,2446.1,2446.0,12.21078118]
[1751006745299,0.40863,2446.1,2446.0,11.80213118]
[1751006745500,0.40863,2446.1,2446.0,12.21078118]
[1751006746107,0.40863,2446.1,2446.0,11.80213118]
[1751006747708,0.40863,2446.1,2446.0,12.21078118]
[1751006748410,0.40863,2446.1,2446.0,11.80213118]
[1751006748810,0.40863,2446.1,2446.0,8.85591474]
[1751006749415,0.40863,2446.1,2446.0,2.43891474]
[1751006749712,0.40865,2446.0,2445.9,2.43891474]
[1751006753210,0.40868,2445.8,2445.7,8.84891474]
[1751006753419,3.35489644,2445.8,2445.7,2.43891474]
[1751006753915,0.4088,2445.1,2445.0,4.06391252]
[1751006754118,0.40882,2445.0,2444.9,14.14656041]
[1751006754307,1.07312,2445.0,2444.9,14.14656041]
[1751006754507,1.07312,2445.0,2444.9,3.2078]
[1751006758423,0.6643,2445.0,2444.9,3.2078]
[1751006758720,0.6643,2445.0,2444.9,3.61663]
[1751006759024,0.6643,2445.0,2444.9,3.2078]
[1751006759417,1.07311,2445.0,2444.9,3.2078]
[1751006763521,0.40884,2444.9,2444.6,37.84288644]
[1751006763717,0.40885,2444.8,2444.6,39.18648644]
[1751006764727,0.40885,2444.8,2444.6,36.24027]
[1751006766024,0.40887,2444.7,2444.6,10.9554]
[1751006766329,0.40886,2444.8,2444.6,35.8324]
[1751006766519,0.40887,2444.7,2444.6,35.8324]
[1751006766719,0.40886,2444.8,2444.6,36.24128]
[1751006768422,0.40887,2444.7,2444.6,35.8324]
[1751006768728,0.40886,2444.8,2444.6,36.24128]
[1751006769226,1.07313,2445.0,2444.7,0.40885]
[1751006769416,1.07313,2445.0,2444.7,1.84255]
[1751006769719,0.40883,2444.9,2444.7,1.84255]
[1751006769920,0.40883,2444.9,2444.7,26.71855]
[1751006770120,0.40883,2444.9,2444.8,0.40885]
[1751006770315,0.40883,2444.9,2444.7,26.71856]
[1751006773427,0.40885,2444.8,2444.7,26.71856]
[1751006773630,0.40884,2444.9,2444.7,25.28486]
[1751006777727,7.0941,2445.3,2444.7,25.28486]
[1751006777728,3.24654736,2446.1,2444.7,25.28486]
[1751006777930,13.07468513,2447.8,2447.1,0.40847]
[1751006777931,0.8546759,2447.2,2447.1,0.40847]
[1751006778139,0.40822,2448.6,2447.1,38.05402092]
[1751006778428,4.6493,2448.7,2448.0,3.2078]
[1751006778623,1.4415,2448.5,2448.0,28.12875921]
[1751006778825,0.40827,2448.3,2448.0,28.12875921]
[1751006779022,2.94621644,2448.2,2448.0,2.54375921]
[1751006779819,1.4415,2448.5,2448.0,2.54375921]
[1751006780026,1.3311,2449.2,2448.3,6.15401644]
[1751006780027,4.38771644,2448.9,2448.3,6.15401644]
[1751006780325,1.3311,2449.2,2448.6,3.2078]
[1751006780531,0.40814,2449.1,2448.6,3.2078]
[1751006780729,1.84434,2449.1,2448.6,3.2078]
[1751006780925,0.40815,2449.0,2448.6,3.2078]
[1751006781126,1.4362,2449.1,2448.6,3.2078]
[1751006781531,0.40817,2448.9,2448.6,3.2078]
[1751006781733,0.40817,2448.9,2448.6,28.8058]
[1751006781933,0.40819,2448.8,2448.6,28.8058]
[1751006782234,8.84147095,2448.9,2448.3,3.2078]
[1751006782430,0.40824,2448.5,2448.4,25.59]
[1751006783130,0.40822,2448.6,2448.4,25.59]
[1751006783529,0.40823,2448.5,2448.4,25.59]
[1751006785639,0.40825,2448.4,2448.3,3.2078]
[1751006785838,0.40825,2448.4,2448.3,28.7668]
[1751006786135,0.40825,2448.4,2448.3,28.7638]
[1751006786530,0.40825,2448.4,2448.3,3.2078]
[1751006786731,0.4083,2448.1,2448.0,28.7598]
[1751006786935,0.4083,2448.1,2448.0,30.69101228]
[1751006787133,1.4446,2448.3,2448.0,30.69101228]
[1751006787436,0.4083,2448.1,2448.0,28.7598]
[1751006787638,0.4083,2448.1,2448.0,30.68926031]
[1751006787840,0.4083,2448.1,2448.0,28.7598]
[1751006792637,0.4083,2448.1,2448.0,28.7228]
[1751006792938,0.40835,2447.8,2447.7,6.738]
[1751006793146,0.40837,2447.7,2447.6,3.2078]
[1751006793432,0.40837,2447.7,2447.6,28.7228]
[1751006793740,0.40837,2447.7,2447.6,3.2078]
[1751006803244,0.40837,2447.7,2447.6,4.56666592]
[1751006803444,0.40836,2447.8,2447.6,4.56666592]
[1751006803743,0.40837,2447.7,2447.6,3.2078]
[1751006803935,0.40837,2447.7,2447.6,4.5666208]
[1751006804544,1.3988,2447.9,2447.6,4.5666208]
[1751006804545,0.40836,2447.8,2447.6,4.5666208]
[1751006804748,0.40836,2447.8,2447.7,1.3588208]
[1751006806147,0.40836,2447.8,2447.7,2.57050451]
[1751006807143,0.40836,2447.8,2447.7,4.36460216]
[1751006808137,0.40836,2447.8,2447.7,5.17332402]
[1751006809141,0.40836,2447.8,2447.7,1.93417634]
[1751006809346,3.3453683,2447.8,2447.7,1.93417634]
[1751006810044,0.40836,2447.8,2447.7,1.93417634]
[1751006811136,0.40836,2447.8,2447.7,4.36068551]
[1751006812147,0.40836,2447.8,2447.7,1.93417634]
[1751006812743,0.40836,2447.8,2447.7,1.3588208]
[1751006814448,4.6164,2448.2,2447.8,0.40834]
[1751006814648,1.13458,2448.2,2448.0,4.8261365]
[1751006814848,1.13458,2448.2,2448.1,1.3588208]
[1751006815152,1.13458,2448.2,2448.1,3.78632556]
[1751006815543,1.13458,2448.2,2448.1,1.3588208]
[1751006816048,1.13458,2448.2,2448.1,4.2958291]
[1751006816049,0.7263,2448.2,2448.1,4.2958291]
[1751006816238,3.2078,2448.6,2448.1,31.0221291]
[1751006816444,0.40826,2448.4,2448.3,2.42829817]
[1751006816639,0.40826,2448.4,2448.3,3.78711897]
[1751006818954,0.40826,2448.4,2448.3,1.3588208]
[1751006820842,0.40826,2448.4,2448.3,4.5666208]
[1751006821852,3.3452683,2448.4,2448.3,4.5666208]
[1751006822040,3.3452683,2448.4,2448.3,6.99707515]
[1751006822240,3.3452683,2448.4,2448.3,0.96060796]
[1751006822453,4.7838683,2448.4,2448.3,0.96060796]
[1751006823154,4.7838683,2448.4,2448.3,2.58129853]
[1751006823951,0.40828,2448.2,2448.1,2.43045435]
[1751006824152,0.4083,2448.1,2448.0,2.43045435]
[1751006824353,2.4897,2448.1,2448.0,2.43045435]
[1751006825448,0.40831,2448.0,2447.9,5.63825435]
[1751006828358,0.40831,2448.0,2447.9,3.2078]
[1751006828757,0.40831,2448.0,2447.9,5.63825435]
[1751006828951,0.40831,2448.0,2447.9,8.57526265]
[1751006829352,0.6601,2448.1,2447.9,8.57526265]
[1751006829550,0.40825,2448.4,2448.1,0.4083]
[1751006829855,0.40824,2448.5,2448.3,6.1448083]
[1751006830054,0.40824,2448.5,2448.4,1.21535639]
[1751006831462,0.40824,2448.5,2448.3,5.63853947]
[1751006831959,0.40824,2448.5,2448.3,7.06063947]
[1751006832261,0.40824,2448.5,2448.3,4.6299]
[1751006833053,0.40825,2448.4,2448.3,4.6299]
[1751006833956,0.40825,2448.4,2448.3,3.2078]
[1751006835959,0.40825,2448.4,2448.3,4.44491451]
[1751006837154,3.2078,2448.8,2448.3,12.79018281]
[1751006837358,0.40823,2448.6,2448.5,1.21456068]
[1751006837665,3.3452383,2448.6,2448.5,2.45167519]
[1751006837858,3.3452383,2448.6,2448.5,1.23711451]
[1751006838957,0.40825,2448.4,2448.3,1.21456068]
[1751006839267,3.3452583,2448.4,2448.3,1.21456068]
[1751006839753,4.6708583,2448.4,2448.3,1.21456068]
[1751006840963,1.73385,2448.4,2448.3,1.21456068]
[1751006841763,0.40828,2448.2,2448.1,2.43073947]
[1751006848464,0.4083,2448.1,2448.0,8.57554777]
[1751006849166,0.4083,2448.1,2448.0,5.63853947]
[1751006852069,0.4083,2448.1,2448.0,2.43073947]
[1751006852369,0.40832,2448.0,2447.9,2.43073947]
[1751006853161,0.40832,2448.0,2447.7,41.70031598]
[1751006853467,0.40832,2448.0,2447.9,2.9370083]
[1751006859476,0.714,2448.3,2447.9,5.37143478]
[1751006859675,0.40828,2448.2,2448.1,3.2078]
[1751006861572,3.3452883,2448.2,2448.1,3.2078]
[1751006861770,4.7871883,2448.2,2448.1,4.42489491]
[1751006861975,4.7871883,2448.2,2448.1,1.21709491]
[1751006862673,4.7871883,2448.2,2447.9,1.62302415]
[1751006862674,0.4083,2448.1,2448.0,1.21709491]
[1751006862873,4.7325083,2448.1,2448.0,1.21709491]
[1751006863278,9.7325083,2448.1,2447.8,1.62302415]
[1751006863576,2.9370083,2447.9,2447.6,2.43442648]
[1751006863776,0.40837,2447.7,2447.6,2.43442648]
[1751006864479,1.79557,2447.7,2447.6,2.43442648]
[1751006865276,0.40837,2447.7,2447.6,2.43442648]
[1751006866579,0.40838,2447.6,2447.5,5.37143478]
[1751006868280,0.40838,2447.6,2447.5,2.9370083]
[1751006869286,1.08996,2447.8,2447.5,5.77982478]
[1751006869476,0.40838,2447.6,2447.5,5.37143478]
[1751006869677,0.40838,2447.7,2447.5,5.37143478]
[1751006869879,0.40838,2447.7,2447.5,6.80283478]
[1751006870181,0.40838,2447.7,2447.5,4.3684083]
[1751006870481,0.40838,2447.7,2447.5,6.80283478]
[1751006871185,4.22843,2448.4,2447.5,6.80283478]
[1751006871377,2.44447924,2448.7,2448.2,3.2078]
[1751006871680,0.4082,2448.7,2448.6,2.9370083]
[1751006871881,5.22097924,2448.9,2448.6,2.9370083]
[1751006871882,0.40819,2448.8,2448.6,2.9370083]
[1751006872079,0.40816,2449.0,2448.6,3.3452183]
[1751006872280,2.44447924,2449.1,2448.7,1.3833]
[1751006872483,0.40818,2448.8,2448.6,2.9370083]
[1751006872783,0.40821,2448.6,2448.5,3.2078]
[1751006874387,1.06941,2448.6,2448.5,3.2078]
[1751006875284,4.0064183,2448.6,2448.5,3.2078]
[1751006875586,5.4116183,2448.6,2448.5,3.2078]
[1751006875982,2.47461,2448.6,2448.5,3.2078]
[1751006876378,5.4116183,2448.6,2448.5,3.2078]
[1751006876583,0.40828,2448.2,2448.1,31.789]
[1751006881391,0.40828,2448.2,2448.1,31.765]
[1751006886892,0.40828,2448.2,2448.1,34.7020083]
[1751006887195,0.6612,2448.6,2448.1,34.7020083]
[1751006887491,0.40826,2448.4,2448.2,3.2078]
[1751006887680,0.40826,2448.4,2448.3,25.165]
[1751006888085,0.40825,2448.4,2448.3,25.165]
[1751006893700,0.40826,2448.3,2448.2,3.2078]
[1751006893890,0.40826,2448.3,2448.2,28.3408]
[1751006894597,0.40826,2448.3,2448.2,3.2078]
[1751006894905,0.40826,2448.3,2448.2,28.3358]
[1751006895701,0.40825,2448.4,2448.2,28.3358]
[1751006895889,0.40825,2448.4,2448.2,29.6983]
[1751006896294,0.40824,2448.5,2448.3,3.3452683]
[1751006896595,0.40824,2448.5,2448.4,25.12]
[1751006897700,0.40822,2448.6,2448.4,25.12]
[1751006897893,0.40817,2448.9,2448.6,0.40821]
[1751006898094,0.40817,2448.9,2448.7,2.9370083]
[1751006898403,0.40817,2448.9,2448.7,4.3551083]
[1751006899799,0.40817,2448.9,2448.7,1.4181]
[1751006900000,0.4082,2448.7,2448.6,25.12]
[1751006900200,0.40821,2448.6,2448.5,9.7648]
[1751006900405,0.40821,2448.6,2448.5,28.3358]
[1751006900604,0.40821,2448.7,2448.5,31.2728083]
[1751006900802,0.40821,2448.7,2448.5,32.6220083]
[1751006901101,0.40821,2448.7,2448.5,34.24039975]
[1751006901304,0.40821,2448.7,2448.6,1.61839145]
[1751006901996,0.40821,2448.7,2448.5,4.82619145]
[1751006901997,0.40821,2448.6,2448.5,4.82619145]
[1751006902199,1.12571,2448.6,2448.5,3.2078]
[1751006902397,0.40823,2448.5,2448.4,26.74039145]
[1751006904306,0.40823,2448.5,2448.4,1.61839145]
[1751006904497,0.40823,2448.5,2448.4,26.73939145]
[1751006904697,1.83063,2448.5,2448.4,26.73939145]
[1751006907908,1.83063,2448.5,2448.4,1.61839145]
[1751006907909,4.7676383,2448.5,2448.4,1.61839145]
[1751006909906,0.40823,2448.5,2448.4,1.61839145]
[1751006910313,0.40825,2448.4,2448.3,1.61839145]
[1751006910503,0.40826,2448.3,2448.2,4.82619145]
[1751006914324,4.3183083,2448.6,2448.2,4.82619145]
[1751006914816,0.40826,2448.3,2448.2,4.82619145]
[1751006918524,1.86916,2448.3,2448.2,4.82619145]
[1751006919022,0.40826,2448.3,2448.2,4.82619145]
[1751006921425,0.40826,2448.3,2448.2,3.2078]
[1751006922324,0.40828,2448.2,2448.1,1.61839145]
[1751006923823,2.8422,2448.6,2448.1,5.37143478]
[1751006924023,0.40825,2448.4,2448.2,4.82877985]
[1751006924724,0.40826,2448.3,2448.2,4.82877985]
[1751006924927,1.3813,2448.6,2448.2,4.82877985]
[1751006925125,0.40818,2448.8,2448.5,6.5530383]
[1751006925427,0.40818,2448.8,2448.5,7.76872545]
[1751006925627,1.76747,2448.9,2448.5,9.83432545]
[1751006925821,1.3593,2448.9,2448.6,1.62389715]
[1751006926127,1.76747,2448.9,2448.6,2.58259715]
[1751006926424,1.3593,2448.9,2448.6,2.99080715]
[1751006926624,1.76748,2448.9,2448.6,2.58259715]
[1751006926826,0.40818,2448.8,2448.6,2.58259715]
[1751006927223,1.10047,2448.9,2448.6,2.58259715]
[1751006928724,1.10047,2448.9,2448.7,1.21569715]
[1751006929225,0.40818,2448.8,2448.7,1.21569715]
[1751006930727,1.10047,2448.9,2448.7,1.21569715]
[1751006931832,0.40817,2448.9,2448.8,3.2078]
[1751006932032,7.9793,2449.2,2448.8,4.5984]
[1751006932330,0.40816,2448.9,2448.8,4.5984]
[1751006932728,0.40813,2449.1,2448.8,4.5984]
[1751006932930,0.40815,2449.0,2448.8,4.5984]
[1751006933330,0.40814,2449.1,2448.8,4.5984]
[1751006933830,0.40815,2449.0,2448.8,4.5984]
[1751006935235,1.4233,2449.2,2448.8,4.5984]
[1751006935438,0.40814,2449.1,2448.8,5.00658]
[1751006935735,1.11742,2449.2,2448.9,0.40816]
[1751006935927,1.11742,2449.2,2448.9,2.52436]
[1751006936125,0.6905,2449.5,2449.1,6.1448083]
[1751006936328,1.3856,2449.9,2449.3,2.9370083]
[1751006936531,9.766,2450.6,2450.1,0.40795]
[1751006936532,9.61497907,2450.6,2450.1,0.40795]
[1751006936828,0.40795,2450.2,2450.1,3.2078]
[1751006937133,2.9370083,2450.2,2450.1,3.2078]
[1751006937429,0.40791,2450.5,2450.1,3.2078]
[1751006937630,2.9370083,2450.7,2450.1,3.2078]
[1751006937822,0.40795,2450.2,2450.1,3.2078]
[1751006938429,3.3449583,2450.2,2450.1,3.2078]
[1751006938834,8.3449583,2450.2,2450.1,3.2078]
[1751006939930,8.9569283,2450.2,2449.5,41.5144]
[1751006940132,0.40806,2449.6,2449.5,2.9370083]
[1751006940334,0.40806,2449.6,2449.5,4.3177083]
[1751006940930,0.40806,2449.6,2449.5,1.3807]
[1751006941229,0.40804,2449.7,2449.5,1.3807]
[1751006941423,0.40806,2449.5,2449.4,3.9222]
[1751006941633,0.40806,2449.5,2449.4,9.7198]
[1751006942525,0.40806,2449.5,2449.4,3.2078]
[1751006942526,3.3450683,2449.5,2449.4,3.2078]
[1751006943944,0.40813,2449.1,2449.0,10.93449715]
[1751006944341,0.40813,2449.1,2449.0,3.2078]
[1751006944542,0.40813,2449.1,2449.0,6.43188618]
[1751006945231,0.40813,2449.1,2449.0,5.62571846]
[1751006945543,0.40813,2449.1,2449.0,6.95761846]
[1751006947346,0.40813,2449.1,2449.0,4.5397]
[1751006947645,0.40813,2449.1,2449.0,6.15108274]
[1751006947832,0.40813,2449.1,2449.0,4.81918274]
[1751006949737,0.40813,2449.1,2449.0,4.41638239]
[1751006950637,0.40813,2449.1,2449.0,3.2078]
[1751006952943,0.40813,2449.1,2449.0,6.1448083]
[1751006954247,0.40815,2449.0,2448.9,1.20858239]
[1751006954440,0.40815,2449.0,2448.9,4.41638239]
[1751006958544,0.40817,2448.9,2448.8,1.20858239]
[1751006958746,0.40817,2448.9,2448.7,1.20858239]
[1751006958747,0.40818,2448.8,2448.7,1.20858239]
[1751006958946,0.4082,2448.7,2448.6,4.41638239]
[1751006959147,0.4082,2448.7,2448.6,3.2078]
[1751006959646,1.02025,2449.4,2448.6,3.2078]
[1751006959841,0.40815,2449.0,2448.9,3.2078]
[1751006960246,0.40815,2449.0,2448.9,4.5376]
[1751006960444,0.40815,2449.0,2448.9,3.2078]
[1751006961752,0.4082,2448.7,2448.6,4.41638239]
[1751006962152,0.4082,2448.7,2448.6,7.35339069]
[1751006963353,0.4082,2448.7,2448.6,4.41638239]
[1751006963553,0.4082,2448.7,2448.6,7.35339069]
[1751006964255,0.40817,2448.9,2448.6,8.16440104]
[1751006964553,0.40817,2448.9,2448.8,2.9370083]
[1751006964958,0.40817,2448.9,2448.8,4.2966083]
[1751006965858,0.40818,2448.8,2448.7,1.90295382]
[1751006966860,0.40816,2449.0,2448.7,1.90295382]
[1751006967167,0.7263,2449.2,2448.9,6.1448083]
[1751006967349,1.13442,2449.2,2449.1,2.9370083]
[1751006967754,0.7263,2449.2,2449.1,2.9370083]
[1751006968053,1.13442,2449.2,2449.1,2.9370083]
[1751006969563,3.2078,2449.6,2449.1,2.9370083]
[1751006969750,0.7288,2449.4,2449.1,2.9370083]
[1751006970952,2.43873197,2449.9,2449.3,6.1448083]
[1751006971162,0.7232,2449.8,2449.3,6.1448083]
[1751006971458,0.40807,2449.5,2449.3,7.5439083]
[1751006971664,0.40807,2449.5,2449.3,8.75596212]
[1751006972254,0.7232,2449.8,2449.3,8.75596212]
[1751006972557,0.40808,2449.4,2449.3,8.75596212]
[1751006974263,0.40808,2449.4,2449.3,7.35686212]
[1751006974559,0.40808,2449.5,2449.3,7.35686212]
[1751006974957,0.40808,2449.4,2449.3,7.35686212]
[1751006975752,0.40808,2449.4,2449.3,4.41985382]
[1751006976762,1.08918,2449.4,2449.3,4.41985382]
[1751006978965,1.08918,2449.4,2449.3,3.2078]
[1751006979855,0.4081,2449.3,2449.2,1.21205382]
[1751006980253,1.0709,2449.3,2449.2,1.21205382]
[1751006983862,0.40812,2449.2,2449.1,1.21205382]
[1751006984361,0.40812,2449.2,2448.9,1.61138274]
[1751006984362,0.40813,2449.1,2449.0,1.21205382]
[1751006984660,3.3451383,2449.1,2449.0,1.21205382]
[1751006985164,3.3451383,2449.1,2448.9,1.21205382]
[1751006985165,0.40815,2449.0,2448.9,1.21205382]
[1751006985366,2.54335,2449.0,2448.9,1.21205382]
[1751006985663,0.40816,2448.9,2448.8,4.41985382]
[1751006986165,1.83176,2448.9,2448.8,4.41985382]
[1751006987064,0.40816,2448.9,2448.8,4.41985382]
[1751006987565,1.02046,2448.8,2448.2,2.9370083]
[1751006987866,0.40826,2448.4,2448.2,2.9370083]
[1751006988061,0.40826,2448.4,2448.3,1.3746]
[1751006988455,0.40823,2448.5,2448.3,1.3746]
[1751006988655,0.40823,2448.5,2448.4,2.9370083]
[1751006988853,1.12623,2448.6,2448.4,2.9370083]
[1751006989362,0.706,2449.1,2448.5,4.5824]
[1751006989566,1.4055,2449.1,2448.9,2.9370083]
[1751006990070,0.40819,2448.8,2448.7,2.9370083]
[1751006990253,0.40817,2448.9,2448.7,2.9370083]
[1751006990656,0.40818,2448.8,2448.7,2.9370083]
[1751006992161,1.4055,2449.1,2448.7,2.9370083]
[1751006992373,0.40817,2448.9,2448.8,4.6465]
[1751006992573,0.40817,2448.9,2448.8,3.2078]
[1751006994564,0.40817,2448.9,2448.8,6.1448083]
[1751006995369,0.40815,2449.1,2448.8,6.5529883]
[1751006995760,0.40815,2449.0,2448.9,0.7141]
[1751006996166,0.7189,2449.3,2448.9,0.7141]
[1751006996372,0.4081,2449.3,2449.2,6.1448083]
[1751006996973,0.40813,2449.1,2449.0,6.687]
[1751006998369,0.40813,2449.2,2449.0,9.6240083]
[1751006998569,0.40813,2449.1,2449.0,9.6240083]
[1751006998973,0.40812,2449.2,2449.0,9.6240083]
[1751006999461,0.40813,2449.1,2449.0,9.6240083]
[1751007000363,0.40813,2449.1,2449.0,6.687]
[1751007000667,0.40815,2449.0,2448.9,10.6089]
[1751007001065,0.40814,2449.1,2448.9,10.6089]
[1751007001374,0.40812,2449.2,2449.0,3.3451583]
[1751007001572,0.6621,2449.4,2449.0,3.3451383]
[1751007001573,0.40811,2449.3,2449.0,3.3451383]
[1751007001780,0.40812,2449.2,2449.0,3.3451383]
[1751007002868,0.6621,2449.4,2449.0,2.9370083]
[1751007002869,0.40813,2449.1,2449.0,2.9370083]
[1751007003269,0.40815,2449.0,2448.9,10.6079]
[1751007004277,0.40814,2449.1,2448.9,10.6079]
[1751007004976,0.40815,2449.0,2448.9,10.6079]
[1751007005566,0.40815,2449.0,2448.9,3.9219]
[1751007005773,0.40817,2448.9,2448.8,9.6230083]
[1751007005973,2.9370083,2448.9,2448.7,6.686]
[1751007006179,3.8838,2448.8,2448.5,6.686]
[1751007006478,0.40822,2448.6,2448.5,6.686]
[1751007006678,0.40825,2448.4,2448.3,55.43288618]
[1751007006870,2.9370083,2448.7,2448.3,6.686]
[1751007007179,0.40825,2448.4,2448.3,6.686]
[1751007011172,2.9370083,2448.5,2448.1,2.43112416]
[1751007011377,0.40828,2448.2,2448.1,32.02]
[1751007014376,0.4083,2448.1,2448.0,3.2078]
[1751007019283,0.40835,2447.8,2447.7,4.82791235]
[1751007019675,0.40835,2447.8,2447.7,39.74092065]
[1751007019881,0.40835,2447.8,2447.7,7.76492065]
[1751007020081,0.40835,2447.8,2447.7,41.07382065]
[1751007020282,0.40835,2447.8,2447.7,41.07182065]
[1751007020989,0.40835,2447.8,2447.7,41.06982065]
[1751007022387,0.40835,2447.8,2447.7,38.13281235]